bitfinex/quotes_SOLUSD_20250918
["timestamp","ask_amount","ask_price","bid_price","bid_amount"]
[1758221178431,0.06,250.48,250.47,18.25808812]
[1758221179030,0.06,250.48,250.47,30.23724438]
[1758221182028,0.06,250.48,250.47,25.57475027]
[1758221182327,20.0,250.47,250.45,0.03]
[1758221182628,20.0,250.47,250.46,30.72]
[1758221183117,24.66249411,250.47,250.46,30.72]
[1758221184216,20.0,250.47,250.46,30.72]
[1758221189116,24.66249411,250.47,250.46,30.72]
[1758221191027,20.67,250.47,250.46,30.72]
[1758221191225,20.0,250.47,250.46,30.72]
[1758221191536,0.06,250.48,250.47,13.59559401]
[1758221191833,0.06,250.48,250.47,14.26559401]
[1758221193045,0.06,250.48,250.47,18.25808812]
[1758221195034,0.1,250.49,250.47,18.54241126]
[1758221195252,0.1,250.49,250.48,45.28991715]
[1758221195462,0.06,250.5,250.49,13.59559401]
[1758221195637,0.06,250.51,250.5,0.28432314]
[1758221195948,0.06,250.51,250.5,45.28991715]
[1758221196126,0.06,250.51,250.5,49.28193311]
[1758221196317,20.06,250.51,250.5,49.28193311]
[1758221197139,20.06,250.51,250.5,18.56193311]
[1758221197345,20.06,250.51,250.5,17.58760997]
[1758221197543,20.06,250.51,250.5,48.30760997]
[1758221197744,20.06,250.51,250.5,56.72]
[1758221199325,20.06,250.51,250.5,26.0]
[1758221199530,20.06,250.51,250.45,0.17216157]
[1758221199531,20.74,250.51,250.45,0.03]
[1758221199727,20.0,250.47,250.46,44.31559401]
[1758221200139,20.0,250.47,250.46,45.00559401]
[1758221200557,20.0,250.47,250.46,48.30824752]
[1758221201050,20.0,250.47,250.46,13.59559401]
[1758221201229,20.0,250.47,250.46,44.31559401]
[1758221201432,20.0,250.47,250.46,13.59559401]
[1758221201758,20.0,250.47,250.46,44.31559401]
[1758221202336,20.0,250.47,250.46,34.71265351]
[1758221202532,20.68,250.47,250.45,0.03]
[1758221202750,0.68,250.46,250.45,26.03]
[1758221202951,0.68,250.46,250.45,56.75]
[1758221203253,20.0,250.47,250.45,56.75]
[1758221203461,20.68,250.47,250.45,56.75]
[1758221203668,20.0,250.47,250.46,3.99265351]
[1758221205872,20.0,250.47,250.45,56.75]
[1758221206065,20.0,250.47,250.45,60.74280342]
[1758221206453,20.0,250.47,250.45,56.75]
[1758221206760,20.68,250.47,250.45,56.75]
[1758221206952,20.0,250.47,250.45,60.74273927]
[1758221207257,20.0,250.47,250.46,30.72]
[1758221207464,20.0,250.47,250.46,110.42]
[1758221207758,20.0,250.47,250.46,83.69265351]
[1758221208052,20.0,250.47,250.46,34.71265351]
[1758221208561,20.0,250.47,250.46,60.71265351]
[1758221212351,20.0,250.47,250.46,56.72]
[1758221213064,20.0,250.47,250.46,60.71265351]
[1758221215564,20.0,250.47,250.46,75.26257066]
[1758221215952,20.0,250.47,250.46,87.24124862]
[1758221216476,20.0,250.49,250.47,13.59559401]
[1758221216664,20.0,250.49,250.48,30.7]
[1758221216863,20.0,250.49,250.48,31.37]
[1758221217552,20.0,250.49,250.48,35.36233471]
[1758221220568,0.06,250.5,250.49,13.59559401]
[1758221220760,0.06,250.5,250.49,14.54991715]
[1758221220963,0.06,250.5,250.49,13.87991715]
[1758221221159,0.06,250.5,250.49,14.54991715]
[1758221221466,0.06,250.51,250.49,26.52620411]
[1758221221671,0.06,250.53,250.52,26.0]
[1758221221973,0.06,250.53,250.52,44.96559401]
[1758221222374,20.06,250.53,250.52,44.96559401]
[1758221222561,0.06,250.53,250.52,44.96559401]
[1758221222868,20.06,250.53,250.52,13.59559401]
[1758221223169,20.06,250.53,250.52,44.29559401]
[1758221224068,20.06,250.53,250.52,17.58729127]
[1758221224273,20.06,250.53,250.52,48.28729127]
[1758221224469,0.06,250.53,250.52,18.30729127]
[1758221224652,0.06,250.53,250.52,49.00729127]
[1758221225387,0.06,250.53,250.52,49.29161441]
[1758221225768,0.06,250.53,250.52,61.26646722]
[1758221226161,0.06,250.53,250.52,140.96646722]
[1758221226359,0.06,250.56,250.55,39.87991715]
[1758221226653,20.06,250.56,250.55,70.57991715]
[1758221226967,20.06,250.56,250.55,71.29991715]
[1758221227170,20.06,250.56,250.55,83.27381405]
[1758221227558,0.06,250.56,250.55,87.26503336]
[1758221228271,0.06,250.56,250.55,166.96503336]
[1758221230657,0.06,250.56,250.55,135.54503336]
[1758221231072,0.06,250.56,250.55,166.96503336]
[1758221231453,0.06,250.56,250.55,135.54503336]
[1758221232654,0.78,250.56,250.55,131.26949091]
[1758221232874,0.78,250.56,250.55,127.98681332]
[1758221233266,0.06,250.56,250.55,127.98681332]
[1758221234958,0.06,250.56,250.55,97.28681332]
[1758221235275,0.06,250.56,250.55,127.98681332]
[1758221236579,0.78,250.56,250.55,123.99559401]
[1758221236757,0.78,250.56,250.55,93.29559401]
[1758221236957,0.06,250.56,250.55,127.98681332]
[1758221237353,0.06,250.56,250.55,97.28681332]
[1758221237574,0.06,250.56,250.55,127.98681332]
[1758221239785,0.06,250.56,250.55,128.68681332]
[1758221240579,0.06,250.56,250.55,48.26681332]
[1758221241372,0.78,250.56,250.55,44.27559401]
[1758221241579,0.78,250.56,250.52,0.28432314]
[1758221241880,20.0,250.53,250.52,13.59559401]
[1758221242081,20.0,250.53,250.52,44.27559401]
[1758221242786,20.0,250.53,250.52,48.26729127]
[1758221246186,20.0,250.53,250.52,48.55161441]
[1758221246388,20.0,250.55,250.54,39.87991715]
[1758221246568,0.06,250.56,250.55,39.59559401]
[1758221246884,0.06,250.56,250.55,40.31559401]
[1758221247086,0.06,250.56,250.55,44.30681332]
[1758221247590,0.06,250.56,250.55,43.58681332]
[1758221248573,0.06,250.56,250.55,44.30681332]
[1758221249369,0.06,250.56,250.55,43.58681332]
[1758221251004,1e-08,250.56,250.55,124.69025839]
[1758221251307,0.16,250.59,250.56,0.28432314]
[1758221251482,20.0,250.66,250.63,13.59559401]
[1758221251804,20.0,250.66,250.65,13.59559401]
[1758221251997,20.0,250.66,250.65,17.58522097]
[1758221254294,20.0,250.66,250.65,20.84763169]
[1758221255503,20.0,250.66,250.65,32.81770651]
[1758221256005,20.0,250.68,250.67,29.98930865]
[1758221256207,20.0,250.68,250.67,60.72930865]
[1758221256411,20.0,250.68,250.67,74.32490266]
[1758221256707,0.1,250.69,250.68,13.59559401]
[1758221256903,0.1,250.69,250.68,13.87991715]
[1758221257494,0.1,250.69,250.68,25.84808183]
[1758221257815,20.1,250.69,250.68,25.84808183]
[1758221258314,20.1,250.69,250.68,15.95731419]
[1758221258601,20.77,250.69,250.68,42.70816468]
[1758221258804,20.77,250.69,250.68,11.96816468]
[1758221258999,20.77,250.69,250.68,30.74]
[1758221262099,20.77,250.69,250.68,34.72914951]
[1758221262700,20.1,250.69,250.68,46.69826918]
[1758221267312,20.1,250.69,250.68,15.95826918]
[1758221267511,20.1,250.69,250.68,46.65826918]
[1758221270100,20.16,250.69,250.68,46.65826918]
[1758221272723,20.16,250.69,250.68,126.35826918]
[1758221272895,20.83,250.69,250.68,30.7]
[1758221273097,24.81899038,250.69,250.68,30.7]
[1758221275415,20.83,250.69,250.68,30.7]
[1758221275720,21.22931318,250.69,250.68,30.7]
[1758221278217,25.21830356,250.69,250.68,30.7]
[1758221279324,21.22931318,250.69,250.68,30.7]
[1758221279997,20.83,250.69,250.68,30.7]
[1758221281311,21.22931318,250.69,250.68,30.7]
[1758221287019,20.16,250.69,250.68,30.7]
[1758221287223,20.55931318,250.69,250.68,30.7]
[1758221287723,20.16,250.69,250.68,35.35914951]
[1758221288807,20.16,250.69,250.68,34.68914951]
[1758221289622,20.16,250.69,250.68,30.7]
[1758221291916,20.82,250.69,250.68,26.0]
[1758221292117,21.21931318,250.69,250.68,56.68]
[1758221293542,20.82,250.69,250.68,56.68]
[1758221294046,20.16,250.69,250.68,56.68]
[1758221297347,20.82,250.69,250.68,56.68]
[1758221298220,20.16,250.69,250.68,56.68]
[1758221301236,20.16,250.69,250.68,57.35]
[1758221301639,20.16,250.69,250.68,56.68]
[1758221301844,20.82,250.69,250.68,56.68]
[1758221302052,20.16,250.69,250.68,56.68]
[1758221302925,21.21931318,250.69,250.68,56.68]
[1758221303125,20.0,250.67,250.66,26.0]
[1758221303342,21.05931318,250.67,250.66,30.68]
[1758221303549,25.04862183,250.67,250.66,30.68]
[1758221304220,27.627451,250.67,250.66,30.68]
[1758221304933,20.0,250.6,250.59,0.03]
[1758221305138,20.0,250.6,250.59,30.71]
[1758221305924,20.0,250.6,250.59,31.38]
[1758221306745,20.0,250.6,250.59,30.71]
[1758221308052,20.66,250.6,250.59,30.71]
[1758221308223,21.05931318,250.6,250.59,30.71]
[1758221308418,25.04973616,250.6,250.59,30.71]
[1758221311254,22.70984475,250.6,250.59,30.71]
[1758221311540,20.0,250.6,250.59,30.71]
[1758221311745,20.0,250.6,250.59,35.37058222]
[1758221317356,20.0,250.6,250.59,115.07058222]
[1758221321245,20.0,250.6,250.59,114.40058222]
[1758221322556,20.0,250.6,250.59,115.06058222]
[1758221324147,20.72,250.6,250.59,110.41]
[1758221324361,20.0,250.6,250.59,110.41]
[1758221324871,20.06,250.6,250.59,114.40058222]
[1758221329172,0.06,250.6,250.59,128.94049937]
[1758221329560,0.06,250.6,250.59,61.21200719]
[1758221331986,0.06,250.6,250.59,30.53200719]
[1758221332306,0.06,250.6,250.59,48.29617623]
[1758221333288,0.06,250.6,250.59,0.03]
[1758221333514,0.06,250.6,250.59,56.71]
[1758221334200,0.06,250.6,250.59,57.39]
[1758221334400,0.06,250.6,250.59,56.71]
[1758221335364,0.06,250.6,250.59,60.70058222]
[1758221337875,0.06,250.6,250.59,140.40058222]
[1758221340175,0.71,250.6,250.59,56.71]
[1758221340598,5.09973616,250.6,250.59,56.71]
[1758221341287,1.10931318,250.6,250.59,56.71]
[1758221343501,5.09973616,250.6,250.59,56.71]
[1758221343805,5.09973616,250.6,250.59,30.71]
[1758221344197,6.75026773,250.6,250.59,30.71]
[1758221346917,6.75026773,250.6,250.59,0.03]
[1758221349122,0.45931318,250.6,250.59,30.71]
[1758221349816,4.44973616,250.6,250.59,30.71]
[1758221350722,5.10973616,250.6,250.59,30.71]
[1758221352313,5.10973616,250.6,250.59,0.03]
[1758221353417,0.45931318,250.6,250.59,30.71]
[1758221358126,4.44973616,250.6,250.59,30.71]
[1758221358312,5.10973616,250.6,250.59,30.71]
[1758221359728,1.11931318,250.6,250.59,30.71]
[1758221361144,0.45931318,250.6,250.59,30.71]
[1758221361508,1.11931318,250.6,250.59,30.71]
[1758221361710,0.45931318,250.6,250.59,30.71]
[1758221365352,1.11931318,250.6,250.59,30.71]
[1758221366148,5.10973616,250.6,250.59,30.71]
[1758221367824,5.10973616,250.6,250.59,0.03]
[1758221368937,21.56886671,250.6,250.59,0.03]
[1758221370015,33.7293005,250.6,250.59,0.03]
[1758221371716,5.10973616,250.6,250.59,0.03]
[1758221373733,7.68894956,250.6,250.59,0.03]
[1758221374718,19.83621364,250.6,250.59,0.03]
[1758221383935,33.71613079,250.6,250.59,0.03]
[1758221385243,31.13691739,250.6,250.59,0.03]
[1758221389160,4.44973616,250.6,250.59,0.68]
[1758221389866,0.45931318,250.6,250.59,0.68]
[1758221395654,0.06,250.6,250.59,0.68]
[1758221396974,0.45931318,250.6,250.59,0.68]
[1758221397172,0.45931318,250.6,250.59,0.03]
[1758221398242,1.14931318,250.6,250.59,0.03]
[1758221399872,5.13973616,250.6,250.59,0.03]
[1758221400463,0.45931318,250.6,250.59,0.72]
[1758221400671,0.06,250.6,250.59,0.72]
[1758221400843,0.06,250.6,250.59,26.72]
[1758221405145,0.06,250.6,250.59,0.72]
[1758221405459,0.06,250.6,250.59,31.4]
[1758221406339,0.06,250.6,250.59,0.03]
[1758221406340,4.75042298,250.6,250.59,0.03]
[1758221406544,4.75042298,250.6,250.59,30.69]
[1758221406865,7.32963638,250.6,250.59,30.69]
[1758221413872,4.75042298,250.6,250.59,30.69]
[1758221414052,7.32963638,250.6,250.59,30.69]
[1758221414252,6.62963638,250.6,250.59,0.03]
[1758221414453,4.75042298,250.6,250.59,0.03]
[1758221415275,7.32963638,250.6,250.59,0.03]
[1758221415658,3.2792134,250.6,250.59,0.03]
[1758221416577,20.86523039,250.6,250.59,0.03]
[1758221416877,21.14955353,250.6,250.59,0.03]
[1758221417468,18.57034013,250.6,250.59,0.03]
[1758221417653,18.28601699,250.6,250.59,0.03]
[1758221420076,4.69042298,250.6,250.59,0.03]
[1758221420268,3.99042298,250.6,250.59,0.03]
[1758221420854,4.69042298,250.6,250.59,0.03]
[1758221421560,3.99042298,250.6,250.59,0.03]
[1758221422164,3.99042298,250.6,250.59,0.74]
[1758221422983,3.99042298,250.6,250.59,0.03]
[1758221424580,4.69042298,250.6,250.59,0.03]
[1758221424958,7.26963638,250.6,250.59,0.03]
[1758221425363,3.99042298,250.6,250.59,0.03]
[1758221425670,4.05042298,250.6,250.59,0.03]
[1758221426678,7.32963638,250.6,250.59,0.03]
[1758221427463,4.75042298,250.6,250.59,0.03]
[1758221430098,18.34601699,250.6,250.59,0.03]
[1758221433472,18.63034013,250.6,250.59,0.03]
[1758221434393,20.28146435,250.6,250.59,0.03]
[1758221434591,25.23483701,250.6,250.59,0.03]
[1758221435170,55.91483701,250.6,250.59,0.03]
[1758221437099,25.23483701,250.6,250.59,0.03]
[1758221437302,55.91483701,250.6,250.59,0.03]
[1758221438576,18.63034013,250.6,250.59,0.03]
[1758221438781,49.31034013,250.6,250.59,0.03]
[1758221439205,18.63034013,250.6,250.59,0.03]
[1758221439377,49.31034013,250.6,250.59,0.03]
[1758221440402,48.61034013,250.6,250.59,0.03]
[1758221440776,50.26146435,250.6,250.59,0.03]
[1758221441510,19.29714121,250.6,250.59,0.03]
[1758221444338,17.64601699,250.6,250.59,0.03]
[1758221444522,19.29714121,250.6,250.59,0.03]
[1758221448402,5.7015472,250.6,250.59,0.7]
[1758221448823,5.7015472,250.6,250.59,0.03]
[1758221449522,5.7015472,250.6,250.59,0.7]
[1758221449900,5.7015472,250.6,250.59,0.03]
[1758221450101,5.7015472,250.6,250.59,0.7]
[1758221450530,5.7015472,250.6,250.59,0.03]
[1758221451929,4.05042298,250.6,250.59,0.7]
[1758221452103,4.05042298,250.6,250.59,0.03]
[1758221453318,4.74042298,250.6,250.59,0.03]
[1758221453637,18.33601699,250.6,250.59,0.03]
[1758221455431,17.64601699,250.6,250.59,0.03]
[1758221458308,18.32601699,250.6,250.59,0.03]
[1758221459932,17.64601699,250.6,250.59,0.03]
[1758221460521,4.05042298,250.6,250.59,0.71]
[1758221466930,6.3715472,250.6,250.59,0.03]
[1758221468437,19.96714121,250.6,250.59,0.03]
[1758221474844,19.29714121,250.6,250.59,0.03]
[1758221475043,4.05042298,250.6,250.59,0.75]
[1758221475245,5.7015472,250.6,250.59,0.75]
[1758221476842,4.05042298,250.6,250.59,0.75]
[1758221477038,5.7015472,250.6,250.59,0.75]
[1758221477239,5.7015472,250.6,250.59,0.03]
[1758221482046,6.3715472,250.6,250.59,0.03]
[1758221482361,20.25146435,250.6,250.59,0.03]
[1758221483242,26.85596123,250.6,250.59,0.03]
[1758221484636,57.51596123,250.6,250.59,0.03]
[1758221484829,50.91146435,250.6,250.59,0.03]
[1758221489144,50.91146435,250.6,250.55,0.03]
[1758221489145,0.28432314,250.58,250.55,0.03]
[1758221489349,35.24671823,250.56,250.55,0.03]
[1758221489652,20.0,250.51,250.48,0.72]
[1758221489855,36.46218952,250.51,250.46,0.03]
[1758221490034,37.5315027,250.51,250.46,0.03]
[1758221490439,37.5315027,250.51,250.46,0.75]
[1758221490849,37.5315027,250.51,250.46,0.03]
[1758221491250,41.52335931,250.51,250.46,0.03]
[1758221493740,13.87991715,250.5,250.49,1e-08]
[1758221493940,14.55991715,250.5,250.49,1e-08]
[1758221495757,18.55193311,250.5,250.49,1e-08]
[1758221496072,17.87193311,250.5,250.49,1e-08]
[1758221496962,20.45420548,250.5,250.49,1e-08]
[1758221497271,21.13420548,250.5,250.49,1e-08]
[1758221498962,51.79420548,250.5,250.49,1e-08]
[1758221499362,54.37647785,250.5,250.49,1e-08]
[1758221499756,20.0,250.44,250.43,0.03]
[1758221499957,36.8615027,250.44,250.43,0.03]
[1758221500164,13.87991715,250.43,250.41,0.1]
[1758221500465,36.57717956,250.42,250.41,0.1]
[1758221500851,37.5415027,250.42,250.41,1e-08]
[1758221501064,40.85479397,250.42,250.41,1e-08]
[1758221501267,41.53479397,250.42,250.41,1e-08]
[1758221502385,40.85479397,250.42,250.41,1e-08]
[1758221502546,41.53479397,250.42,250.41,1e-08]
[1758221503668,38.9525216,250.42,250.41,1e-08]
[1758221505565,38.2725216,250.42,250.41,1e-08]
[1758221506148,69.6325216,250.42,250.41,1e-08]
[1758221506544,20.14216157,250.39,250.38,1e-08]
[1758221506752,23.26590869,250.39,250.38,1e-08]
[1758221506975,23.94590869,250.39,250.38,1e-08]
[1758221507268,36.01948302,250.39,250.38,1e-08]
[1758221508276,40.01325273,250.39,250.38,1e-08]
[1758221508445,53.60884674,250.39,250.38,1e-08]
[1758221508652,33.59559401,250.35,250.34,0.03]
[1758221508853,33.99490719,250.35,250.34,0.03]
[1758221509649,37.98931501,250.35,250.34,0.03]
[1758221510156,40.85591052,250.35,250.34,0.03]
[1758221510367,41.53591052,250.35,250.34,0.03]
[1758221510865,13.87991715,250.34,250.33,1e-08]
[1758221511078,45.23991715,250.34,250.33,1e-08]
[1758221511778,49.23448453,250.34,250.33,1e-08]
[1758221511953,3.99456738,250.34,250.33,0.72000001]
[1758221516177,4.68456738,250.34,250.33,1e-08]
[1758221516487,3.99456738,250.34,250.33,1e-08]
[1758221517784,3.99456738,250.34,250.33,0.72000001]
[1758221519058,3.99456738,250.34,250.33,1e-08]
[1758221520775,17.59016139,250.34,250.33,1e-08]
[1758221523580,18.55448453,250.34,250.33,1e-08]
[1758221525365,33.59559401,250.32,250.31,1e-08]
[1758221525581,38.27411687,250.32,250.31,1e-08]
[1758221525787,40.85638924,250.32,250.31,1e-08]
[1758221526087,41.53638924,250.32,250.31,1e-08]
[1758221526789,33.59559401,250.28,250.27,0.2]
[1758221527085,36.8615027,250.28,250.27,1e-08]
[1758221527285,37.5415027,250.28,250.27,1e-08]
[1758221527663,41.53702771,250.28,250.27,1e-08]
[1758221528492,72.21702771,250.28,250.27,1e-08]
[1758221529171,69.63475534,250.28,250.27,1e-08]
[1758221529387,72.21702771,250.28,250.27,1e-08]
[1758221536092,41.53702771,250.28,250.27,1e-08]
[1758221536393,72.21702771,250.28,250.27,1e-08]
[1758221543092,74.88119403,250.28,250.27,1e-08]
[1758221543279,72.29892166,250.28,250.27,1e-08]
[1758221543483,74.88119403,250.28,250.27,1e-08]
[1758221544214,40.93892166,250.28,250.27,1e-08]
[1758221544380,24.39483819,250.28,250.27,0.67000001]
[1758221545590,23.99552501,250.28,250.27,0.67000001]
[1758221546189,24.05552501,250.28,250.27,0.67000001]
[1758221551241,20.06,250.28,250.27,0.67000001]
[1758221553813,0.06,250.28,250.27,0.67000001]
[1758221560340,0.06,250.28,250.27,80.37000001]
[1758221573345,0.06,250.28,250.27,111.04000001]
[1758221577045,0.06,250.28,250.27,80.38000001]
[1758221577254,0.06,250.28,250.27,111.04000001]
[1758221578122,0.06,250.28,250.27,110.36000001]
[1758221578629,0.06,250.28,250.27,111.05000001]
[1758221579554,0.06,250.28,250.27,110.36000001]
[1758221581336,0.06,250.28,250.27,111.05000001]
[1758221583575,0.06,250.28,250.27,80.39000001]
[1758221583873,0.06,250.28,250.27,111.05000001]
[1758221584026,0.06,250.28,250.27,128.92560182]
[1758221584228,0.06,250.28,250.27,140.91241632]
[1758221586479,0.06,250.31,250.3,26.0]
[1758221586759,0.06,250.31,250.3,56.66]
[1758221586937,0.06,250.31,250.3,57.38]
[1758221587138,0.06,250.31,250.3,138.67824193]
[1758221588235,0.06,250.31,250.3,138.96256507]
[1758221590461,0.06,250.31,250.3,108.30256507]
[1758221590654,0.06,250.31,250.3,137.93824193]
[1758221592154,0.06,250.31,250.3,107.29824193]
[1758221592360,0.76,250.31,250.3,137.93824193]
[1758221592537,0.76,250.31,250.3,110.34]
[1758221592859,0.76,250.31,250.3,30.64]
[1758221594457,4.75505378,250.31,250.3,30.64]
[1758221595153,0.76,250.31,250.3,30.64]
[1758221596277,4.75504614,250.31,250.27,1e-08]
[1758221596469,4.75504614,250.31,250.3,26.0]
[1758221596644,4.75504614,250.31,250.3,56.64]
[1758221597349,0.76,250.31,250.3,56.64]
[1758221597670,0.06,250.31,250.3,57.36]
[1758221597870,0.06,250.31,250.3,69.34729347]
[1758221601871,0.06,250.31,250.3,148.32729347]
[1758221602248,0.06,250.31,250.3,149.04729347]
[1758221603274,0.06,250.31,250.3,148.32729347]
[1758221605953,0.06,250.31,250.3,117.68729347]
[1758221606160,0.06,250.31,250.3,148.32729347]
[1758221609158,0.06,250.31,250.3,149.04729347]
[1758221610656,0.06,250.31,250.3,162.92721062]
[1758221610851,0.06,250.31,250.3,166.92241637]
[1758221611070,0.06,250.31,250.3,162.92721062]
[1758221612857,0.06,250.31,250.3,166.92241637]
[1758221615159,0.06,250.34,250.33,26.0]
[1758221615464,0.06,250.34,250.33,110.73947269]
[1758221615668,0.06,250.34,250.33,111.03]
[1758221615884,0.06,250.34,250.33,123.01537784]
[1758221616382,0.06,250.34,250.33,126.13810352]
[1758221618284,0.06,250.34,250.33,122.32537784]
[1758221618478,0.77,250.34,250.33,122.32537784]
[1758221619376,0.06,250.34,250.33,122.32537784]
[1758221620257,0.77,250.34,250.33,122.32537784]
[1758221620582,0.77,250.34,250.33,91.68537784]
[1758221620765,0.77,250.34,250.33,122.32537784]
[1758221620966,0.77,250.34,250.33,91.68537784]
[1758221621282,0.77,250.34,250.33,122.32537784]
[1758221621484,0.77,250.34,250.33,91.68537784]
[1758221621689,0.77,250.34,250.33,122.30537784]
[1758221623370,0.77,250.34,250.33,91.68537784]
[1758221623578,0.77,250.34,250.33,122.30537784]
[1758221625989,0.06,250.34,250.33,122.99537784]
[1758221627198,0.06,250.34,250.33,47.2901048]
[1758221627397,0.06,250.34,250.33,61.17002195]
[1758221627571,0.06,250.37,250.36,43.58984229]
[1758221627765,0.06,250.37,250.36,74.89359025]
[1758221627991,0.06,250.37,250.36,75.58359025]
[1758221628172,0.06,250.37,250.36,77.18125765]
[1758221630474,0.06,250.37,250.36,73.18700937]
[1758221631387,0.06,250.37,250.36,77.18125765]
[1758221632580,0.06,250.37,250.36,73.18700937]
[1758221633502,0.06,250.37,250.36,77.18125765]
[1758221634704,0.06,250.37,250.36,73.18700937]
[1758221635199,0.06,250.37,250.36,42.56700937]
[1758221635388,0.06,250.37,250.36,72.09758455]
[1758221635589,0.74,250.37,250.36,72.49700937]
[1758221635804,0.06,250.37,250.36,72.49700937]
[1758221636898,0.06,250.37,250.36,77.17125765]
[1758221637499,0.06,250.37,250.36,156.87125765]
[1758221637697,0.06,250.37,250.36,156.47183283]
[1758221638203,0.06,250.37,250.36,121.17758455]
[1758221638507,0.06,250.37,250.36,151.79758455]
[1758221639507,0.06,250.37,250.36,121.17758455]
[1758221639680,0.06,250.37,250.36,151.79758455]
[1758221640586,0.06,250.37,250.36,121.17758455]
[1758221640794,0.06,250.37,250.36,151.79758455]
[1758221641604,0.06,250.37,250.36,152.47758455]
[1758221642498,0.06,250.37,250.36,151.79758455]
[1758221643294,0.06,250.37,250.36,152.45758455]
[1758221643496,0.06,250.37,250.36,125.17183283]
[1758221643709,20.76,250.37,250.36,30.62]
[1758221643891,20.76,250.37,250.36,29.9]
[1758221643892,27.3359707,250.37,250.36,29.9]
[1758221645702,20.0,250.34,250.3,32.32]
[1758221645888,20.0,250.34,250.31,30.62]
[1758221645889,3.28188196,250.33,250.31,30.62]
[1758221646289,20.0,250.34,250.33,26.0]
[1758221646501,20.0,250.34,250.33,56.62]
[1758221646821,20.7,250.34,250.33,26.0]
[1758221646982,20.7,250.34,250.33,56.62]
[1758221647177,24.69456738,250.34,250.33,56.62]
[1758221649821,20.0,250.32,250.31,0.03]
[1758221649996,20.0,250.32,250.31,30.65]
[1758221650305,20.7,250.32,250.31,30.65]
[1758221652014,24.69488654,250.32,250.31,30.65]
[1758221652592,24.69488654,250.32,250.31,0.03]
[1758221652920,24.69488654,250.32,250.31,56.65]
[1758221656497,24.69488654,250.32,250.31,26.03]
[1758221656693,24.69488654,250.32,250.31,56.65]
[1758221658993,23.99488654,250.32,250.31,56.65]
[1758221659199,20.0,250.32,250.31,57.31]
[1758221662417,20.0,250.32,250.31,26.03]
[1758221662601,20.7,250.32,250.31,30.65]
[1758221663001,24.69488654,250.32,250.31,30.65]
[1758221663302,23.99488654,250.32,250.31,30.65]
[1758221663696,20.0,250.32,250.31,31.31]
[1758221664119,20.0,250.32,250.31,0.69]
[1758221664312,20.0,250.32,250.31,31.31]
[1758221664620,20.0,250.32,250.31,43.29729347]
[1758221664807,20.0,250.32,250.31,31.31]
[1758221665622,20.0,250.32,250.31,30.65]
[1758221665809,20.0,250.32,250.31,26.03]
[1758221665810,24.69488654,250.32,250.31,26.03]
[1758221666020,24.69488654,250.32,250.31,56.65]
[1758221666324,20.0,250.32,250.31,57.31]
[1758221668324,20.0,250.32,250.31,56.65]
[1758221670011,20.0,250.32,250.31,57.31]
[1758221671221,20.0,250.32,250.31,56.65]
[1758221671528,20.0,250.32,250.31,57.31]
[1758221672323,20.0,250.32,250.31,56.65]
[1758221673511,23.99488654,250.32,250.31,26.03]
[1758221673711,23.99488654,250.32,250.31,56.65]
[1758221675313,20.0,250.34,250.31,57.37]